fUST/lending_fUST_20250804
["ID","MTS","AMOUNT","RATE_DAILY","PERIOD"]
[377225592,1754304647960,-500.0,0.00034798,2]
[377225593,1754304647970,-500.0,0.00034798,7]
[377225594,1754304647980,-500.0,0.00034798,7]
[377225595,1754304647989,-500.0,0.00034798,7]
[377225596,1754304647999,-500.0,0.00034798,7]
[377225597,1754304648008,-500.0,0.00034798,7]
[377225598,1754304648017,-500.0,0.00034798,7]
[377225599,1754304648026,-500.0,0.00034798,7]
[377225600,1754304648036,-500.0,0.00034798,7]
[377225601,1754304648045,-500.0,0.00034798,7]
[377225602,1754304648054,-500.0,0.00034798,7]
[377225603,1754304648064,-500.0,0.00034798,7]
[377225604,1754304648074,-500.0,0.00034798,7]
[377225605,1754304648083,-500.0,0.00034798,7]
[377225606,1754304648093,-500.0,0.00034798,7]
[377225607,1754304648102,-500.0,0.00034798,7]
[377225608,1754304648112,-500.0,0.00034798,7]
[377225609,1754304648122,-500.0,0.00034798,7]
[377225610,1754304648132,-500.0,0.00034798,7]
[377225611,1754304648142,-500.0,0.00034798,7]
[377225612,1754304648152,-500.0,0.00034798,7]
[377225613,1754304648162,-445.69357488,0.00034798,7]
[377225614,1754304648176,-500.0,0.00034798,7]
[377225615,1754304648186,-500.0,0.00034798,7]
[377225616,1754304648196,-500.0,0.00034798,7]
[377225617,1754304648206,-500.0,0.00034798,7]
[377225618,1754304648216,-500.0,0.00034798,7]
[377225619,1754304648226,-184.83991774,0.00034798,2]
[377225620,1754304648235,-462.48076088,0.00034799,2]
[377225621,1754304648245,-460.0,0.00034799,2]
[377225622,1754304648255,-477.64255831,0.00034799,7]
[377225623,1754304648265,-3619.51961501,0.000348,7]
[377225624,1754304729893,150.0,0.00026666,2]
[377225625,1754304734633,-300.0,0.00033498,2]
[377225626,1754304760932,150.0,0.00032854,2]
[377225627,1754304929813,-380.0,0.00033304,2]
[377225628,1754304929978,-60.0,0.00033498,2]
[377225630,1754304951258,162.650959,0.00013699,2]
[377225631,1754304975110,10000.0,0.000333,2]
[377225632,1754304996852,-6522.0,0.00033304,2]
[377225633,1754304999675,24900.0,0.00033117,2]
[377225634,1754305016399,10000.0,0.000333,2]
[377225635,1754305026329,10000.0,0.000333,2]
[377225636,1754305028068,160.75,0.000333,30]
[377225637,1754305035659,10000.0,0.000333,2]
[377225638,1754305068277,-63.9365149,0.00033304,2]
[377225639,1754305068305,-175.98,0.00033398,2]
[377225640,1754305068340,-13.351481,0.00033498,2]
[377225641,1754305068370,-732.7320041,0.00033555,120]
[377225643,1754305102638,10000.0,0.000333,2]
[377225644,1754305110898,200.0,0.00033293,120]
[377225645,1754305202737,-471.0,0.000335,120]
[377225646,1754305202758,-822.0,0.00033555,2]
[377225647,1754305203286,320.6113708,0.00030137,120]
[377225648,1754305203327,374.5,0.00029984,120]
[377225649,1754305203506,446.3,0.00030137,120]
[377225650,1754305204373,301.0,0.00029984,60]
[377225651,1754305204703,300.0,0.00029984,60]
[377225652,1754305205081,300.0,0.00029984,60]
[377225653,1754305205484,300.0,0.00029984,60]
[377225654,1754305210197,202.0,0.00032296,7]
[377225655,1754305215630,400.0,0.00032877,120]
[377225656,1754305224611,213.14097,0.000294,120]
[377225657,1754305234978,200.0,0.000294,120]
[377225658,1754305236019,204.96585,0.000311,120]
[377225659,1754305270727,-210.35256253,0.00033454,2]
[377225660,1754305270749,-1600.0,0.00033554,3]
[377225661,1754305270772,-400.0,0.00033554,2]
[377225662,1754305270793,-4127.0,0.00033555,2]
[377225663,1754305270814,-569.46142375,0.00033555,120]
[377225664,1754305270834,-1979.52793487,0.00033555,2]
[377225665,1754305270864,-2607.41744065,0.000339,29]
[377225666,1754305270890,-657.2406382,0.00034107,30]
[377225667,1754305285611,188.395187,0.00032667,2]
[377225668,1754305299171,550.0,0.000273,120]
[377225669,1754305429903,174.755084,0.00033162,2]
[377225671,1754305441301,185.0,0.0003227,7]
[377225672,1754305521192,400.0,0.00032877,120]
[377225676,1754305591358,360.7,0.00029,30]
[377225677,1754305608096,994.8494716,0.00032932,3]
[377225678,1754305611127,200.0,0.00029,30]
[377225679,1754305621513,200.0,0.00029,120]
[377225680,1754305631200,400.0,0.00029,120]
[377225681,1754305642944,500.0,0.00029326,2]
[377225682,1754305643309,500.0,0.00031865,7]
[377225683,1754305644424,500.0,0.00030075,7]
[377225684,1754305648413,-250.0,0.00033555,120]
[377225685,1754305670615,-210.35256253,0.00033455,2]
[377225686,1754305670638,-34.73071187,0.00033555,120]
[377225687,1754305670660,-4.9167256,0.00033555,2]
[377225688,1754305700397,-177.03377096,0.00033555,2]
[377225689,1754305702637,-165.701387,0.00033555,2]
[377225690,1754305705415,-165.701387,0.00033555,2]
[377225691,1754305709165,-165.701387,0.00033555,2]
[377225692,1754305711968,-171.74681504,0.00033555,2]
[377225693,1754305734455,-138.96249483,0.00033555,2]
[377225694,1754305734479,-44.7965591,0.00033555,30]
[377225695,1754305759358,-123.6234409,0.00033555,30]
[377225696,1754305759382,-53.3134952,0.00033555,120]
[377225697,1754305763227,-190.76398994,0.00033555,120]
[377225698,1754305832928,-256.76,0.00032267,20]
[377225699,1754305832939,-200.0,0.00033827,120]
[377225700,1754305832949,-387.16786736,0.00034029,2]
[377225701,1754305832958,-430.6428066,0.00034384,30]
[377225702,1754305832968,-1600.0,0.00034465,3]
[377225703,1754305832979,-430.6428066,0.00034466,30]
[377225704,1754305832989,-430.6428066,0.00034466,30]
[377225705,1754305832999,-430.6428066,0.00034466,30]
[377225706,1754305833009,-187.04,0.0003451,2]
[377225707,1754305833018,-187.04,0.00034511,2]
[377225708,1754305833028,-400.0,0.00034515,3]
[377225709,1754305833038,-381.0,0.00034515,3]
[377225711,1754305833048,-400.0,0.00034515,2]
[377225713,1754305833058,-400.0,0.00034515,3]
[377225714,1754305833068,-400.0,0.00034515,3]
[377225716,1754305833078,-500.0,0.00034516,7]
[377225717,1754305833087,-243.29531104,0.00034516,7]
[377225719,1754305833097,-500.0,0.00034516,2]
[377225721,1754305833107,-345.87630939,0.00034516,2]
[377225728,1754305833170,-462.228,0.00034516,3]
[377225859,1754305838657,-989.76396743,0.00034029,2]
[377225861,1754305838667,-500.0,0.00034515,7]
[377225863,1754305838676,-500.0,0.00034515,7]
[377225865,1754305838686,-500.0,0.00034515,2]
[377225867,1754305838696,-500.0,0.00034515,2]
[377225869,1754305838706,-500.0,0.00034515,7]
[377225871,1754305838716,-500.0,0.00034515,2]
[377225873,1754305838725,-500.0,0.00034515,7]
[377225875,1754305838735,-500.0,0.00034515,7]
[377225877,1754305838745,-500.0,0.00034515,2]
[377225879,1754305838754,-500.0,0.00034515,2]
[377225881,1754305838764,-564.23213346,0.00034515,2]
[377225883,1754305838773,-500.0,0.00034515,7]
[377225885,1754305838783,-500.0,0.00034515,2]
[377225887,1754305838792,-500.0,0.00034515,7]
[377225889,1754305838802,-500.0,0.00034515,2]
[377225891,1754305838811,-500.0,0.00034515,2]
[377225893,1754305838821,-500.0,0.00034515,7]
[377225895,1754305838830,-500.0,0.00034515,7]
[377225897,1754305838839,-240.09688303,0.00034515,2]
[377225899,1754305838848,-376.95793328,0.00034515,2]
[377225901,1754305838858,-500.0,0.00034515,7]
[377225903,1754305838867,-500.0,0.00034515,2]
[377225905,1754305838876,-500.0,0.00034515,7]
[377225907,1754305838886,-500.0,0.00034515,7]
[377225908,1754305838897,-500.0,0.00034515,2]
[377225910,1754305838907,-500.0,0.00034515,7]
[377225912,1754305838916,-500.0,0.00034515,2]
[377225914,1754305838927,-500.0,0.00034515,7]
[377225917,1754305838937,-500.0,0.00034515,7]
[377225919,1754305838946,-500.0,0.00034515,7]
[377225921,1754305838956,-500.0,0.00034515,2]
[377225923,1754305838968,-500.0,0.00034515,7]
[377225925,1754305838978,-500.0,0.00034515,7]
[377225927,1754305838988,-500.0,0.00034515,7]
[377225929,1754305838998,-500.0,0.00034515,7]
[377225931,1754305839007,-500.0,0.00034515,2]
[377225933,1754305839017,-500.0,0.00034515,7]
[377225935,1754305839026,-500.0,0.00034515,7]
[377225937,1754305839036,-500.0,0.00034515,7]
[377225939,1754305839045,-500.0,0.00034515,2]
[377225941,1754305839055,-500.0,0.00034515,7]
[377225943,1754305839065,-500.0,0.00034515,7]
[377225945,1754305839074,-387.49127565,0.00034515,7]
[377225947,1754305839083,-500.0,0.00034515,7]
[377225949,1754305839093,-500.0,0.00034515,7]
[377225951,1754305839102,-500.0,0.00034515,7]
[377225953,1754305839111,-500.0,0.00034515,7]
[377225955,1754305839120,-500.0,0.00034515,7]
[377225957,1754305839129,-500.0,0.00034515,7]
[377225959,1754305839140,-500.0,0.00034515,7]
[377225961,1754305839151,-500.0,0.00034515,7]
[377225963,1754305839161,-500.0,0.00034515,7]
[377225965,1754305839171,-500.0,0.00034515,7]
[377225967,1754305839180,-500.0,0.00034515,7]
[377225970,1754305839190,-500.0,0.00034515,7]
[377225972,1754305839200,-500.0,0.00034515,7]
[377225974,1754305839209,-500.0,0.00034515,7]
[377225976,1754305839219,-500.0,0.00034515,7]
[377225978,1754305839229,-433.89344551,0.00034515,7]
[377225980,1754305839238,-500.0,0.00034515,7]
[377225982,1754305839248,-500.0,0.00034515,7]
[377225984,1754305839257,-500.0,0.00034515,7]
[377225986,1754305839267,-500.0,0.00034515,7]
[377225988,1754305839278,-500.0,0.00034515,7]
[377225990,1754305839287,-500.0,0.00034515,7]
[377225992,1754305839298,-500.0,0.00034515,7]
[377225994,1754305839307,-500.0,0.00034515,7]
[377225996,1754305839317,-500.0,0.00034515,7]
[377225998,1754305839326,-500.0,0.00034515,7]
[377226000,1754305839335,-500.0,0.00034515,7]
[377226002,1754305839344,-500.0,0.00034515,7]
[377226004,1754305839353,-500.0,0.00034515,7]
[377226006,1754305839363,-500.0,0.00034515,7]
[377226008,1754305839372,-500.0,0.00034515,7]
[377226010,1754305839381,-500.0,0.00034515,7]
[377226012,1754305839390,-500.0,0.00034515,7]
[377226014,1754305839401,-500.0,0.00034515,7]
[377226016,1754305839410,-500.0,0.00034515,7]
[377226018,1754305839419,-500.0,0.00034515,7]
[377226020,1754305839429,-500.0,0.00034515,7]
[377226022,1754305839438,-1137.772,0.00034516,3]
[377226024,1754305839448,-814.27,0.00034516,2]
[377226026,1754305839457,-914.74,0.00034516,2]
[377226028,1754305839466,-2965.37,0.00034516,2]
[377226030,1754305839476,-2872.24,0.00034519,2]
[377226031,1754305839485,-1086.95,0.00034519,2]
[377226034,1754305839495,-472.5,0.00034519,2]
[377226036,1754305839505,-460.0,0.00034519,2]
[377226038,1754305839514,-460.0,0.00034519,2]
[377226040,1754305839523,-5315.49,0.00034519,2]
[377226042,1754305839533,-460.0,0.00034519,2]
[377226044,1754305839542,-849.45,0.00034519,2]
[377226059,1754305839673,-465.35,0.00034519,2]
[377226061,1754305839684,-1163.9,0.00034519,2]
[377226063,1754305839694,-1171.18,0.00034519,2]
[377226065,1754305839703,-489.97,0.00034519,2]
[377226067,1754305839712,-567.66,0.00034519,2]
[377226069,1754305839722,-1730.34,0.00034519,2]
[377226070,1754305839731,-4079.8273086,0.00034569,2]
[377226072,1754305839740,-498.14253164,0.00034683,2]
[377226074,1754305839749,-200.0,0.00034695,120]
[377226076,1754305839758,-498.14253162,0.00034727,2]
[377226078,1754305839767,-498.14253162,0.0003477,2]
[377226080,1754305839776,-528.0,0.0003477,120]
[377226082,1754305839786,-334.34979082,0.00034772,7]
[377226084,1754305839795,-510.72260156,0.00034773,3]
[377226086,1754305839805,-500.0,0.00034773,5]
[377226088,1754305839814,-500.0,0.00034773,5]
[377226091,1754305839824,-528.0,0.0003478,120]
[377226092,1754305839834,-8188.21460132,0.00034783,2]
[377226094,1754305839844,-187.04,0.00034785,2]
[377226096,1754305839853,-8188.21460132,0.00034787,2]
[377226098,1754305839863,-8188.21460132,0.00034789,2]
[377226100,1754305839872,-814.27,0.0003479,2]
[377226102,1754305839881,-8188.21460132,0.0003479,2]
[377226104,1754305839899,-914.74,0.0003479,2]
[377226106,1754305839908,-2965.37,0.0003479,2]
[377226108,1754305839917,-528.0,0.0003479,120]
[377226110,1754305839927,-460.0,0.00034793,2]
[377226112,1754305839936,-578.74,0.00034793,2]
[377226114,1754305839946,-460.0,0.00034793,2]
[377226116,1754305839955,-460.0,0.00034793,2]
[377226118,1754305839965,-597.98,0.00034793,2]
[377226120,1754305839974,-460.0,0.00034793,2]
[377226122,1754305839983,-460.0,0.00034793,2]
[377226124,1754305839992,-526.27,0.00034793,2]
[377226126,1754305840002,-460.0,0.00034793,2]
[377226128,1754305840011,-460.0,0.00034793,2]
[377226130,1754305840021,-460.0,0.00034793,2]
[377226132,1754305840030,-460.0,0.00034793,2]
[377226135,1754305840039,-460.0,0.00034793,2]
[377226137,1754305840049,-460.0,0.00034793,2]
[377226139,1754305840059,-460.0,0.00034793,2]
[377226141,1754305840068,-190.16099976,0.00034793,2]
[377226142,1754305840077,-460.0,0.00034793,2]
[377226144,1754305840086,-460.0,0.00034793,2]
[377226146,1754305840095,-460.0,0.00034793,2]
[377226148,1754305840105,-460.0,0.00034793,2]
[377226150,1754305840114,-460.0,0.00034793,2]
[377226152,1754305840123,-460.0,0.00034793,2]
[377226154,1754305840132,-460.0,0.00034793,2]
[377226156,1754305840142,-460.0,0.00034793,2]
[377226159,1754305840152,-783.13,0.00034793,2]
[377226161,1754305840162,-460.0,0.00034793,2]
[377226163,1754305840171,-824.42,0.00034793,2]
[377226164,1754305840180,-460.0,0.00034793,2]
[377226166,1754305840190,-2872.24,0.00034793,2]
[377226168,1754305840199,-460.0,0.00034793,2]
[377226170,1754305840209,-741.38,0.00034793,2]
[377226172,1754305840218,-590.74,0.00034793,2]
[377226175,1754305840227,-1086.95,0.00034793,2]
[377226177,1754305840237,-472.5,0.00034793,2]
[377226178,1754305840246,-460.0,0.00034793,2]
[377226180,1754305840255,-460.0,0.00034793,2]
[377226182,1754305840265,-555.71,0.00034793,2]
[377226184,1754305840274,-460.0,0.00034793,2]
[377226186,1754305840283,-1408.44,0.00034793,2]
[377226188,1754305840292,-460.0,0.00034793,2]
[377226190,1754305840302,-382.42233538,0.00034793,2]
[377226192,1754305840311,-5315.49,0.00034793,2]
[377226195,1754305840328,-570.43,0.00034793,2]
[377226197,1754305840340,-460.0,0.00034793,2]
[377226199,1754305840351,-460.0,0.00034793,2]
[377226201,1754305840361,-460.0,0.00034793,2]
[377226204,1754305840371,-460.0,0.00034793,2]
[377226206,1754305840382,-1309.17,0.00034793,2]
[377226208,1754305840392,-849.45,0.00034793,2]
[377226210,1754305840402,-460.0,0.00034793,2]
[377226212,1754305840412,-2497.86,0.00034793,2]
[377226214,1754305840422,-460.0,0.00034793,2]
[377226216,1754305840433,-628.03,0.00034793,2]
[377226218,1754305840443,-460.0,0.00034793,2]
[377226220,1754305840453,-465.35,0.00034793,2]
[377226222,1754305840463,-478.43,0.00034793,2]
[377226224,1754305840473,-460.0,0.00034793,2]
[377226226,1754305840484,-1163.9,0.00034793,2]
[377226228,1754305840497,-766.31,0.00034793,2]
[377226230,1754305840507,-476.66,0.00034793,2]
[377226232,1754305840517,-460.0,0.00034793,2]
[377226234,1754305840527,-1171.18,0.00034793,2]
[377226236,1754305840537,-460.0,0.00034793,2]
[377226238,1754305840547,-1596.57,0.00034793,2]
[377226240,1754305840557,-1014.97,0.00034793,2]
[377226242,1754305840567,-460.0,0.00034793,2]
[377226244,1754305840577,-460.0,0.00034793,2]
[377226247,1754305840587,-1859.61,0.00034793,2]
[377226249,1754305840598,-835.53,0.00034793,2]
[377226251,1754305840607,-460.0,0.00034793,2]
[377226253,1754305840618,-464.65,0.00034793,2]
[377226255,1754305840627,-489.97,0.00034793,2]
[377226257,1754305840637,-766.05,0.00034793,2]
[377226259,1754305840648,-599.4,0.00034793,2]
[377226261,1754305840657,-460.0,0.00034793,2]
[377226263,1754305840666,-567.66,0.00034793,2]
[377226265,1754305840676,-694.98,0.00034793,2]
[377226267,1754305840686,-1730.34,0.00034793,2]
[377226269,1754305840697,-1473.12620208,0.00034795,2]
[377226271,1754305840709,-618.16,0.00034795,2]
[377226273,1754305840720,-7805.30662334,0.00034795,2]
[377226276,1754305840736,-4758.38337666,0.00034795,2]
[377226278,1754305840746,-650.23,0.00034795,2]
[377226280,1754305840756,-930.93,0.00034795,2]
[377226282,1754305840766,-546.15,0.00034795,2]
[377226284,1754305840775,-525.08452296,0.00034795,2]
[377226312,1754305841025,236.63696,0.000294,120]
[377226314,1754305841042,-1025.92947994,0.00034795,2]
[377226317,1754305841054,-585.85964783,0.00034795,2]
[377226349,1754305842047,-2113.46634927,0.00034795,2]
[377226350,1754305842056,-1342.78,0.00034795,2]
[377226351,1754305842066,-763.4,0.00034795,2]
[377226352,1754305842075,-669.61,0.00034795,2]
[377226353,1754305842085,-1255.16,0.00034795,2]
[377226354,1754305842094,-1010.73,0.00034795,2]
[377226355,1754305842104,-460.0,0.00034795,2]
[377226356,1754305842113,-1994.64,0.00034795,2]
[377226357,1754305842122,-811.1,0.00034795,2]
[377226358,1754305842132,-962.2,0.00034795,2]
[377226359,1754305842142,-12388.1,0.00034797,2]
[377226360,1754305842151,-992.26,0.00034797,2]
[377226361,1754305842160,-5607.02,0.00034797,2]
[377226362,1754305842170,-196.11490759,0.00034797,2]
[377226363,1754305842180,-2950.16,0.00034797,2]
[377226364,1754305842191,-535.98,0.00034797,2]
[377226365,1754305842201,-2186.16,0.00034797,2]
[377226366,1754305842210,-460.0,0.00034799,2]
[377226367,1754305842219,-1295.75,0.00034799,2]
[377226368,1754305842229,-767.87,0.00034799,2]
[377226369,1754305842238,-460.0,0.00034799,2]
[377226370,1754305842248,-492.23,0.00034799,2]
[377226371,1754305842257,-868.66,0.00034799,2]
[377226373,1754305842266,-2316.13,0.00034799,2]
[377226375,1754305842276,-460.0,0.00034799,2]
[377226377,1754305842286,-538.72,0.00034799,2]
[377226379,1754305842296,-985.05,0.00034799,2]
[377226381,1754305842306,-460.0,0.00034799,2]
[377226383,1754305842315,-460.0,0.00034799,2]
[377226384,1754305842324,-460.0,0.00034799,2]
[377226385,1754305842334,-1439.92,0.00034799,2]
[377226386,1754305842343,-460.0,0.00034799,2]
[377226388,1754305842353,-1400.03,0.00034799,2]
[377226390,1754305842363,-1486.62,0.00034799,2]
[377226391,1754305842373,-609.07,0.00034799,2]
[377226393,1754305842386,-462.98529269,0.00034799,2]
[377226394,1754305842396,-460.0,0.00034799,2]
[377226395,1754305842406,-600.35,0.00034799,2]
[377226396,1754305842419,-460.0,0.00034799,2]
[377226398,1754305842429,-460.0,0.00034799,2]
[377226399,1754305842438,-460.0,0.00034799,2]
[377226401,1754305842448,-460.0,0.00034799,2]
[377226402,1754305842457,-460.0,0.00034799,2]
[377226403,1754305842467,-460.0,0.00034799,2]
[377226406,1754305842487,-460.0,0.00034799,2]
[377226407,1754305842499,-460.0,0.00034799,2]
[377226408,1754305842509,-460.0,0.00034799,2]
[377226410,1754305842519,-460.0,0.00034799,2]
[377226412,1754305842529,-1420.04,0.00034799,2]
[377226414,1754305842539,-1066.35,0.00034799,2]
[377226415,1754305842549,-460.0,0.00034799,2]
[377226416,1754305842559,-827.61,0.00034799,2]
[377226417,1754305842570,-464.68,0.00034799,2]
[377226418,1754305842580,-500.0,0.00034799,2]
[377226419,1754305842590,-324.1597799,0.00034799,2]
[377226420,1754305842600,-1270.32,0.00034799,2]
[377226421,1754305842610,-460.0,0.00034799,2]
[377226422,1754305842621,-191.16468485,0.00034799,2]
[377226423,1754305842631,-39017.90038499,0.000348,7]
[377226424,1754305842641,-9828.19,0.000348,7]
[377226425,1754305842651,-498.14253162,0.00034814,2]
[377226426,1754305842662,-3468.572834,0.00034827,2]
[377226427,1754305842672,-498.14253162,0.00034857,2]
[377226428,1754305842682,-325.0,0.00034877,7]
[377226429,1754305842692,-447.0,0.00034927,120]
[377226430,1754305842702,-160.0,0.00034932,2]
[377226431,1754305842712,-150.5,0.00034934,120]
[377226432,1754305842723,-447.0,0.00034937,120]
[377226433,1754305842733,-150.5,0.00034944,120]
[377226434,1754305842743,-3349.54479621,0.00034947,2]
[377226490,1754305847042,-500.0,0.00034515,7]
[377226491,1754305847053,-566.12,0.00034519,2]
[377226492,1754305847062,-355.36751424,0.0003478,10]
[377232205,1754305914229,162.650959,0.00013699,2]
[377236334,1754305958447,-190.76398994,0.00033417,2]
[377236479,1754305960048,-267.10638613,0.00033417,2]
[377246096,1754306063889,-56.69095093,0.00033417,2]
[377246099,1754306063910,-591.982,0.00033555,120]
[377246103,1754306063930,-400.0,0.00033989,2]
[377246106,1754306063950,-47415.32704907,0.0003399,2]
[377247230,1754306084106,150.0,0.0002556,2]
[377247253,1754306141082,389.091577,0.00033152,120]
[377247258,1754306152394,441.49846518,0.00029988,120]
[377247292,1754306210382,3131.78574412,0.000333,7]
[377247293,1754306214750,168.34,0.00030137,30]
[377247294,1754306215252,168.34,0.00031588,30]
[377247295,1754306215701,168.34,0.00033189,30]
[377247296,1754306226719,-500.0,0.00033555,120]
[377247301,1754306267180,155.13207093,0.000327,2]
[377247305,1754306329913,460.82935488,0.000333,7]
[377247306,1754306338470,151.0,0.00033,120]
[377247322,1754306393980,176.9369361,0.00032326,2]
[377247325,1754306415275,24900.0,0.00032445,2]
[377249193,1754306544416,500.0,0.00029042,2]
[377249365,1754306550248,500.0,0.00031265,7]
[377249406,1754306551827,500.0,0.00032894,7]
[377249787,1754306564792,161.12273185,0.00033,120]
[377249889,1754306568682,150.0,0.000327,2]
[377250160,1754306578344,151.0,0.00033,120]
[377250815,1754306635106,200.0,0.00032413,2]
[377251368,1754306663239,165.701387,0.00032143,2]
[377251375,1754306663451,165.701387,0.0003225,2]
[377251382,1754306663656,165.701387,0.00032357,2]
[377251388,1754306663867,165.701387,0.00032464,2]
[377251815,1754306681931,2187.30124763,0.000332,2]
[377251973,1754306688286,496.68461954,0.00033299,2]
[377252160,1754306713706,183.079199,0.00032431,2]
[377252161,1754306718416,33025.49785161,0.00033298,2]
[377253265,1754306788918,202.72758837,0.00033298,2]
[377253919,1754306842647,500.0,0.00029575,2]
[377254101,1754306848190,1000.0,0.00033,30]
[377254152,1754306850856,200.0,0.00033157,120]
[377254154,1754306869237,277.73637465,0.00030007,120]
[377254155,1754306869755,150.0,0.0003189,2]
[377254170,1754306875155,30000.0,0.00018,2]
[377254546,1754306887073,161.4319093,0.00033297,2]
[377254580,1754306889204,5000.0,0.000333,2]
[377254671,1754306896749,245.55220991,0.00030007,120]
[377254715,1754306898052,552.86056018,0.00030007,120]
[377254775,1754306899951,5000.0,0.000333,2]
[377254811,1754306901037,198.52760796,0.000125,2]
[377254864,1754306904451,188.0,0.0002,120]
[377254866,1754306909443,315.48580141,0.00030007,120]
[377254867,1754306910355,427.91,0.00030136,120]
[377254868,1754306910622,314.46481243,7e-05,120]
[377254869,1754306911129,162.650959,0.00013699,2]
[377254923,1754306915013,363.74071162,0.00030007,120]
[377254999,1754306917797,240.82074905,0.00030007,120]
[377255027,1754306919148,244.24214006,0.00030007,120]
[377255042,1754306919865,223.5691111,0.00030007,30]
[377255055,1754306920833,244.91534368,0.00030007,30]
[377255056,1754306921710,483.96982603,0.00024108,120]
[377255057,1754306921960,538.27897509,0.00027397,120]
[377255058,1754306922102,159.42551364,0.00025,120]
[377255060,1754306923079,559.18108343,0.00030007,120]
[377255063,1754306923512,253.98845444,0.000333,2]
[377255076,1754306924719,151.46993699,0.00030007,30]
[377255077,1754306924759,468.39294534,0.00030007,120]
[377255097,1754306926120,430.1953959,0.00030007,120]
[377255101,1754306926237,217.74829564,0.00030007,120]
[377255126,1754306927522,319.67309709,0.00030007,120]
[377255130,1754306927666,205.49203237,0.00030007,120]
[377255132,1754306927748,512.31561304,0.00030007,30]
[377255134,1754306927789,179.31043474,0.00030007,30]
[377255141,1754306929110,163.94357727,0.00030007,120]
[377255146,1754306929319,220.62475923,0.0001536,120]
[377255162,1754306930045,503.76512,0.00030007,120]
[377255164,1754306930084,536.82983239,0.00030007,120]
[377255182,1754306930890,221.25543076,0.00030007,120]
[377255197,1754306931586,5000.0,0.000333,2]
[377255209,1754306932119,289.52214871,0.00024,120]
[377255216,1754306932449,423.07196582,0.00025,120]
[377255221,1754306932856,408.10018818,0.00030007,120]
[377255222,1754306932949,188.45037101,0.00030007,120]
[377255223,1754306933448,266.071024,0.00023,120]
[377255224,1754306933531,512.8471,0.00030007,120]
[377255380,1754306947928,5000.0,0.000333,2]
[377255495,1754306961986,170.99,0.000333,30]
[377255496,1754306963675,5000.0,0.000333,2]
[377255687,1754306979293,5000.0,0.000333,2]
[377255845,1754306994998,5000.0,0.000333,2]
[377255883,1754307000353,14102.52415988,0.0003299,2]
[377255899,1754307004470,450.0,0.00030004,60]
[377255905,1754307004893,450.0,0.00030004,60]
[377255914,1754307005384,450.0,0.00030004,60]
[377255920,1754307006032,450.0,0.00030004,60]
[377255924,1754307006517,450.0,0.00030004,60]
[377255942,1754307007820,453.0,0.00030004,60]
[377256186,1754307028711,2070.51016097,0.00032018,2]
[377256187,1754307030599,4653.98921433,0.00032018,2]
[377256237,1754307032019,-400.0,0.00033396,3]
[377256239,1754307032029,-300.0,0.00033396,3]